bitfinex/quotes_SOLUSD_20230111
["timestamp","ask_amount","ask_price","bid_price","bid_amount"]
[1673414238281,20.0,15.997,15.982,46.94]
[1673414238596,20.0,15.997,15.972,20.0]
[1673414238597,48.82,15.996,15.977,46.95]
[1673414238791,20.0,15.995,15.977,46.95]
[1673414239122,1.92,15.994,15.977,46.95]
[1673414239312,1.92,15.994,15.978,0.96]
[1673414239526,1.92,15.994,15.979,46.95]
[1673414240702,1.92,15.994,15.977,46.95]
[1673414240892,1.58867875,15.993,15.977,46.95]
[1673414241106,1.92,15.992,15.977,46.95]
[1673414241323,1.92,15.992,15.978,20.0]
[1673414241540,1.92,15.992,15.979,46.95]
[1673414244999,1.92,15.992,15.98,20.0]
[1673414245207,1.92,15.992,15.981,46.94]
[1673414245414,20.0,15.995,15.981,47.9]
[1673414245624,1.92,15.994,15.981,47.9]
[1673414246381,1.92,15.994,15.981,0.96]
[1673414246693,1.92,15.994,15.982,46.94]
[1673414246910,1.92,15.994,15.982,20.0]
[1673414247116,1.92,15.994,15.983,46.94]
[1673414247736,1.92,15.994,15.981,46.94]
[1673414258697,1.92,15.994,15.979,29.3]
[1673414263643,20.0,15.995,15.979,29.3]
[1673414263951,20.0,15.995,15.98,1.92]
[1673414264150,20.0,15.995,15.981,29.3]
[1673414264362,20.0,15.995,15.982,1.92]
[1673414264566,20.0,15.995,15.983,29.29]
[1673414266047,0.96,15.994,15.983,29.29]
[1673414266258,0.96,15.994,15.979,29.27]
[1673414266476,0.96,15.993,15.979,29.27]
[1673414266668,0.96,15.994,15.979,29.27]
[1673414267320,0.96,15.994,15.98,0.96]
[1673414267529,0.96,15.994,15.981,29.26]
[1673414267839,0.96,15.993,15.981,29.26]
[1673414268052,0.96,15.993,15.979,29.27]
[1673414268367,0.96,15.992,15.979,29.27]
[1673414268997,0.96,15.993,15.979,29.27]
[1673414269217,0.96,15.994,15.98,1.92]
[1673414269398,1.92,15.994,15.981,29.28]
[1673414270555,0.96,15.993,15.981,29.28]
[1673414270762,0.96,15.993,15.979,29.29]
[1673414272882,0.96,15.993,15.98,1.92]
[1673414273091,0.96,15.993,15.981,29.3]
[1673414275067,109.284,15.996,15.981,29.3]
[1673414275275,109.284,15.996,15.982,1.92]
[1673414275611,109.284,15.996,15.983,46.07802056]
[1673414275801,109.284,15.996,15.984,135.6079]
[1673414276011,109.284,15.996,15.985,37.78]
[1673414276232,135.401,16.0,15.986,20.0]
[1673414276438,119.2158,16.002,15.987,42.02]
[1673414276659,119.2158,16.002,15.988,20.96]
[1673414276874,119.2158,16.002,15.989,45.58]
[1673414277073,119.2158,16.002,15.99,0.96]
[1673414277283,20.0,16.001,15.991,47.87]
[1673414277495,119.2158,16.002,15.992,0.96]
[1673414277699,20.0,16.001,15.993,46.91]
[1673414278330,119.2158,16.002,15.993,46.91]
[1673414278958,129.4717158,16.022,15.993,46.91]
[1673414279168,139.542,16.008,15.994,1.92]
[1673414279490,20.0,16.007,15.993,46.91]
[1673414279917,20.0,16.007,15.994,0.96]
[1673414280129,37.19312387,16.013,15.994,0.96]
[1673414280130,249.0852,16.02,15.995,46.9]
[1673414280343,112.9911,16.013,15.996,21.92]
[1673414280653,20.0,16.012,15.997,46.9]
[1673414280867,20.0,16.012,15.998,21.92]
[1673414281080,20.0,16.012,15.999,46.89]
[1673414281396,133.91,16.02,16.0,0.96]
[1673414281603,112.9911,16.019,16.001,46.88]
[1673414281819,20.0,16.018,16.002,21.92]
[1673414282021,66.83,16.018,16.003,46.88]
[1673414282344,20.0,16.018,16.004,21.92]
[1673414282536,20.0,16.018,16.005,66.87]
[1673414282743,20.0,16.018,16.006,20.0]
[1673414282964,20.0,16.018,16.007,46.87]
[1673414283289,112.9911,16.019,16.008,20.0]
[1673414283501,112.9911,16.019,16.009,20.0]
[1673414283909,20.0,16.018,16.008,46.86]
[1673414284111,20.0,16.018,16.009,20.0]
[1673414284327,112.9911,16.019,16.009,20.0]
[1673414284541,20.0,16.018,16.009,20.0]
[1673414284959,20.0,16.018,16.007,20.0]
[1673414286859,0.96,16.014,16.003,20.0]
[1673414287052,1.92,16.014,16.0,118.0891]
[1673414288121,20.0,16.013,16.0,118.0891]
[1673414288333,1.92,16.012,16.0,118.0891]
[1673414292126,20.0,16.013,16.001,20.0]
[1673414292653,20.0,16.014,16.001,20.0]
[1673414293255,0.96,16.013,16.001,20.0]
[1673414293497,1.92,16.013,16.002,46.88]
[1673414293683,1.92,16.013,16.001,66.88]
[1673414293916,5.7035674,16.015,16.001,66.88]
[1673414294105,1.92,16.014,16.001,66.88]
[1673414295586,0.96,16.014,16.002,0.96]
[1673414295789,5.7035674,16.015,16.003,44.46]
[1673414296000,5.7035674,16.015,16.004,20.0]
[1673414296215,5.7035674,16.015,16.005,1.92]
[1673414296850,5.7035674,16.015,16.004,66.88]
[1673414297170,5.7035674,16.015,16.004,20.0]
[1673414298412,5.7035674,16.015,16.005,46.87]
[1673414298623,5.7035674,16.015,16.004,20.0]
[1673414298624,5.7035674,16.015,16.004,66.88]
[1673414302308,5.7035674,16.015,16.005,1.92]
[1673414304419,5.7035674,16.015,16.006,46.87]
[1673414304628,5.7035674,16.015,16.007,21.92]
[1673414304837,5.7035674,16.015,16.009,20.0]
[1673414305030,5.7035674,16.015,16.01,46.86]
[1673414306191,5.7035674,16.015,16.011,20.0]
[1673414306414,0.0005674,16.015,16.012,46.85]
[1673414306614,112.9911,16.019,16.012,46.85]
[1673414307574,112.9911,16.019,16.011,20.0]
[1673414307887,112.9911,16.019,16.01,46.86]
[1673414308294,112.9911,16.019,16.009,46.86]
[1673414308503,20.0,16.018,16.008,46.86]
[1673414308723,20.0,16.018,16.009,20.0]
[1673414308939,112.9911,16.019,16.009,20.0]
[1673414309349,112.9911,16.019,16.007,66.87]
[1673414310199,112.9911,16.019,16.008,20.0]
[1673414310518,112.9911,16.019,16.009,20.0]
[1673414312391,1.92,16.018,16.009,20.0]
[1673414312609,21.92,16.018,16.009,20.0]
[1673414312834,1.92,16.018,16.009,20.0]
[1673414313243,88.75,16.018,16.003,46.88]
[1673414313570,88.75,16.018,16.002,113.4337]
[1673414313972,88.75,16.018,16.003,20.0]
[1673414314180,88.75,16.018,16.002,113.4337]
[1673414316609,88.75,16.018,16.003,21.92]
[1673414316836,88.75,16.018,16.003,1.92]
[1673414317012,86.83,16.018,16.003,1.92]
[1673414317431,86.83,16.018,16.002,113.4337]
[1673414318281,1.92,16.017,16.002,113.4337]
[1673414318486,20.0,16.015,16.002,113.4337]
[1673414318703,1.92,16.014,16.002,113.4337]
[1673414322075,1.92,16.014,15.997,46.9]
[1673414322076,26.62,16.01,15.997,46.9]
[1673414322267,26.62,16.01,15.992,68.7104]
[1673414322268,20.96,16.009,15.998,20.0]
[1673414322480,21.92,16.009,15.998,20.0]
[1673414322912,21.92,16.009,15.996,20.0]
[1673414325334,21.92,16.009,15.997,46.9]
[1673414325546,21.92,16.009,15.998,20.0]
[1673414326075,21.92,16.009,15.996,20.0]
[1673414326471,21.92,16.009,15.994,20.0]
[1673414326806,21.92,16.009,15.995,46.9]
[1673414327019,21.92,16.009,15.996,20.0]
[1673414327631,21.92,16.009,15.995,20.0]
[1673414330502,21.92,16.009,15.996,46.9]
[1673414330701,21.92,16.009,15.997,20.0]
[1673414331127,21.92,16.009,15.996,66.9]
[1673414331961,21.92,16.009,15.996,20.0]
[1673414332179,21.92,16.009,15.995,20.0]
[1673414332384,21.92,16.009,15.996,46.9]
[1673414332580,20.0,16.007,15.992,116.261]
[1673414332801,20.0,16.005,15.992,116.261]
[1673414333120,2.61553211,16.004,15.992,116.261]
[1673414333323,1.65553211,16.002,15.992,116.261]
[1673414333541,0.96,16.001,15.992,116.261]
[1673414333740,0.96,16.003,15.992,116.261]
[1673414334073,2.64072222,16.002,15.992,116.261]
[1673414334472,0.96,16.002,15.992,116.261]
[1673414335419,20.0,16.005,15.992,116.261]
[1673414336784,1.92,16.004,15.992,116.261]
[1673414339619,1.92,16.004,15.993,35.32]
[1673414351738,20.0,16.005,15.993,35.32]
[1673414352055,115.7529,16.012,15.994,21.92]
[1673414352272,115.7529,16.012,15.995,23.15]
[1673414352488,115.7529,16.012,15.996,21.92]
[1673414352674,115.7529,16.012,15.998,20.0]
[1673414352887,115.7529,16.012,15.999,26.24]
[1673414353320,1.92,16.011,16.0,20.0]
[1673414353529,1.92,16.011,16.001,29.34]
[1673414354582,21.92,16.011,16.001,29.34]
[1673414365234,0.96,16.011,16.001,29.34]
[1673414365448,138.0737,16.02,16.001,43.14122119]
[1673414365667,20.0,16.019,16.002,20.0]
[1673414365854,20.0,16.019,16.003,46.88]
[1673414366068,72.72340501,16.019,16.003,46.88]
[1673414366290,20.0,16.017,16.001,46.88]
[1673414366908,18.92,16.016,16.001,46.88]
[1673414367103,20.0,16.015,16.001,46.88]
[1673414367337,1.92,16.014,16.001,46.88]
[1673414369527,20.0,16.015,16.001,46.88]
[1673414370908,1.92,16.014,16.001,46.88]
[1673414371433,20.0,16.015,16.002,21.92]
[1673414371746,20.0,16.015,16.003,46.88]
[1673414372151,20.0,16.017,16.004,20.0]
[1673414372369,20.0,16.017,16.005,48.79]
[1673414373943,108.2413,16.018,16.005,48.79]
[1673414374149,20.0,16.017,16.005,48.79]
[1673414374569,40.0,16.017,16.005,48.79]
[1673414374848,20.0,16.017,16.005,48.79]
[1673414375738,40.0,16.017,16.005,48.79]
[1673414376590,20.0,16.016,16.004,46.88]
[1673414377416,20.0,16.017,16.003,13.80122119]
[1673414377636,108.2413,16.018,16.005,33.80122119]
[1673414377842,108.2413,16.018,16.006,68.79]
[1673414378043,108.2413,16.018,16.006,82.59122119]
[1673414378376,108.2413,16.018,16.007,33.80122119]
[1673414378572,108.2413,16.018,16.008,48.78]
[1673414378782,108.2413,16.018,16.009,20.0]
[1673414378987,108.2413,16.018,16.01,46.86]
[1673414380887,111.5037,16.02,16.01,46.86]
[1673414382677,20.0,16.019,16.009,46.86]
[1673414383081,0.96,16.018,16.009,46.86]
[1673414383290,1.92,16.018,16.007,46.87]
[1673414383495,1.92,16.018,16.008,20.0]
[1673414384127,1.92,16.018,16.006,66.87]
[1673414388785,1.92,16.018,16.007,20.0]
[1673414389100,1.92,16.018,16.008,66.86]
[1673414392457,20.0,16.019,16.008,66.86]
[1673414393186,20.0,16.019,16.008,20.0]
[1673414393529,20.0,16.019,16.005,20.0]
[1673414393708,1.92,16.018,16.006,46.87]
[1673414393915,1.92,16.018,16.007,20.0]
[1673414394133,1.92,16.018,16.008,46.86]
[1673414394442,20.0,16.019,16.009,20.0]
[1673414394875,20.0,16.019,16.01,46.86]
[1673414397510,1.92,16.018,16.01,46.86]
[1673414397714,1.92,16.018,16.009,20.0]
[1673414397932,1.92,16.018,16.005,20.0]
[1673414398244,1.92,16.018,16.006,46.87]
[1673414398428,1.92,16.018,16.007,20.0]
[1673414398643,1.92,16.018,16.008,46.86]
[1673414398863,1.92,16.018,16.009,20.0]
[1673414399609,1.92,16.018,16.007,66.87]
[1673414402839,1.92,16.018,16.007,20.0]
[1673414403056,1.92,16.018,16.006,20.0]
[1673414403265,1.92,16.018,16.007,46.87]
[1673414403492,1.92,16.018,16.008,20.0]
[1673414404107,1.92,16.018,16.006,20.0]
[1673414404317,1.92,16.018,16.007,46.87]
[1673414404528,1.92,16.018,16.008,20.0]
[1673414404963,16.92,16.019,16.008,20.0]
[1673414405177,1.92,16.018,16.006,20.0]
[1673414405601,1.92,16.018,16.004,20.0]
[1673414405806,1.92,16.018,16.005,46.87]
[1673414406025,1.92,16.018,16.006,20.0]
[1673414406755,1.92,16.018,16.004,20.0]
[1673414406956,1.92,16.018,16.005,46.87]
[1673414407163,16.92,16.019,16.006,20.0]
[1673414407385,16.92,16.019,16.007,46.87]
[1673414407597,16.92,16.019,16.008,20.0]
[1673414408229,16.92,16.019,16.007,20.0]
[1673414408633,1.92,16.018,16.007,20.0]
[1673414409049,1.92,16.018,16.008,46.86]
[1673414409280,1.92,16.018,16.009,20.0]
[1673414409494,158.0337,16.02,16.009,20.0]
[1673414409495,111.5037,16.02,16.009,20.0]
[1673414409711,111.5037,16.02,16.01,46.86]
[1673414411274,20.0,16.019,16.01,46.86]
[1673414411801,111.5037,16.02,16.01,46.86]
[1673414413898,20.0,16.019,16.01,46.86]
[1673414418092,111.5037,16.02,16.01,46.86]
[1673414418518,20.0,16.019,16.01,46.86]
[1673414419880,111.5037,16.02,16.01,46.86]
[1673414420505,20.0,16.019,16.01,46.86]
[1673414420714,20.0,16.022,16.011,1.92]
[1673414427238,20.0,16.022,16.008,66.86]
[1673414427572,20.0,16.022,16.009,1.92]
[1673414428602,20.0,16.022,16.009,21.92]
[1673414431470,20.0,16.022,16.009,1.92]
[1673414434732,20.0,16.022,16.009,21.92]
[1673414435257,20.0,16.022,16.009,1.92]
[1673414436409,0.96,16.021,16.008,66.86]
[1673414436602,1.92,16.021,16.008,20.0]
[1673414437250,1.92,16.021,16.009,20.0]
[1673414437444,1.92,16.021,16.006,20.0]
[1673414438302,1.92,16.021,16.007,48.79]
[1673414438511,1.92,16.021,16.008,20.0]
[1673414439145,1.92,16.021,16.008,46.86]
[1673414439360,1.92,16.021,16.009,20.0]
[1673414439547,48.75,16.021,16.009,20.0]
[1673414439760,20.0,16.02,16.007,21.92]
[1673414440067,1.92,16.019,16.007,1.92]
[1673414440282,1.92,16.019,16.006,66.87]
[1673414440502,1.92,16.019,16.006,20.0]
[1673414441140,1.92,16.019,16.005,20.0]
[1673414441367,1.92,16.019,16.006,48.79]
[1673414441535,20.0,16.02,16.007,20.0]
[1673414441875,20.0,16.02,16.008,48.78]
[1673414442189,20.0,16.02,16.009,20.0]
[1673414442594,20.0,16.02,16.008,1.92]
[1673414442921,1.92,16.019,16.006,46.87]
[1673414443110,1.92,16.019,16.007,20.0]
[1673414443742,1.92,16.019,16.005,20.0]
[1673414443974,1.92,16.019,16.006,48.79]
[1673414444190,1.92,16.019,16.007,20.0]
[1673414444590,1.92,16.019,16.006,1.92]
[1673414444800,1.92,16.019,16.006,48.79]
[1673414445028,1.92,16.019,16.007,20.0]
[1673414446786,1.92,16.019,16.008,46.86]
[1673414446999,1.92,16.019,16.009,20.0]
[1673414447209,46.49,16.02,16.009,20.0]
[1673414447415,20.0,16.021,16.009,20.0]
[1673414447416,20.0,16.022,16.01,48.78]
[1673414449228,20.0,16.022,16.01,46.86]
[1673414449418,20.0,16.022,16.009,20.0]
[1673414449628,20.0,16.022,16.007,20.0]
[1673414449838,20.0,16.022,16.008,48.78]
[1673414450062,1.92,16.021,16.009,20.0]
[1673414450784,1.92,16.021,16.009,46.86]
[1673414453325,1.92,16.021,16.008,46.86]
[1673414453637,1.92,16.021,16.009,20.0]
[1673414453853,20.0,16.02,16.009,20.0]
[1673414454064,1.92,16.019,16.005,20.0]
[1673414454377,1.92,16.019,16.006,46.87]
[1673414454598,1.92,16.019,16.007,20.0]
[1673414454797,1.92,16.019,16.008,46.86]
[1673414455110,1.92,16.019,16.009,20.0]
[1673414455526,1.92,16.019,16.006,66.87]
[1673414455736,1.92,16.019,16.007,1.92]
[1673414455945,1.92,16.019,16.008,46.86]
[1673414456264,1.92,16.019,16.009,20.0]
[1673414456684,20.0,16.02,16.009,20.0]
[1673414460661,20.0,16.02,16.004,46.88]
[1673414460662,66.83,16.019,16.004,46.88]
[1673414460868,1.59140903,16.018,15.994,46.9]
[1673414461097,20.0,16.016,15.995,20.0]
[1673414461325,20.0,16.016,15.996,46.9]
[1673414461326,1.92,16.015,15.996,46.9]
[1673414461632,49.60282307,16.015,15.996,46.9]
[1673414461826,20.0,16.014,15.996,46.9]
[1673414462042,1.68454323,16.013,15.996,46.9]
[1673414462247,1.68454323,16.013,15.997,20.0]
[1673414462452,1.68454323,16.013,15.998,46.89]
[1673414462661,1.92,16.012,15.996,46.9]
[1673414462883,1.68454323,16.011,15.996,46.9]
[1673414463100,1.92,16.01,15.997,20.0]
[1673414463318,1.79144091,16.009,15.998,46.89]
[1673414463515,1.92,16.008,15.999,20.0]
[1673414463943,20.0,16.009,15.999,20.0]
[1673414464263,3.73422959,16.008,15.997,20.0]
[1673414464453,3.73422959,16.008,15.998,46.89]
[1673414464664,3.73422959,16.008,15.999,20.0]
[1673414465075,3.73422959,16.008,15.996,20.0]
[1673414465311,20.0,16.007,15.996,66.9]
[1673414465520,1.81422959,16.006,15.996,20.0]
[1673414465842,1.81422959,16.006,15.995,20.0]
[1673414466025,1.81422959,16.006,15.996,46.9]
[1673414466233,0.96,16.005,15.993,46.91]
[1673414466449,3.05111789,16.004,15.992,119.9535]
[1673414466665,0.96,16.003,15.992,119.9535]
[1673414466988,3.05111789,16.002,15.992,119.9535]
[1673414467190,2.09111789,16.0,15.992,119.9535]
[1673414467395,2.09111789,16.001,15.992,119.9535]
[1673414468764,0.96,16.0,15.989,43.23]
[1673414468978,2.22109822,15.999,15.987,42.6]
[1673414469184,2.22109822,15.999,15.988,20.0]
[1673414469515,2.22109822,15.999,15.989,42.13]
[1673414469828,1.92,15.998,15.985,41.81]
[1673414470136,70.11765064,15.997,15.98,41.02]
[1673414470354,2.58601028,15.995,15.978,39.41]
[1673414470669,2.68959948,15.993,15.978,39.41]
[1673414471075,22.85094371,15.994,15.978,39.41]
[1673414471280,1.92,15.993,15.978,39.41]
[1673414471615,2.85911593,15.992,15.978,39.41]
[1673414472452,2.85911593,15.992,15.979,20.0]
[1673414472664,2.85911593,15.992,15.98,36.72]
[1673414473093,1.92,15.991,15.978,36.47]
[1673414473317,1.92,15.991,15.979,20.0]
[1673414473622,1.92,15.991,15.98,35.77]
[1673414476890,20.0,15.989,15.979,20.0]
[1673414477078,20.0,15.989,15.98,30.53]
[1673414477292,20.0,15.989,15.979,30.53]
[1673414482333,1.92,15.988,15.979,30.53]
[1673414482547,1.92,15.988,15.978,20.0]
[1673414482971,1.92,15.988,15.979,40.89]
[1673414483900,40.70462213,15.988,15.974,39.75]
[1673414484340,20.0,15.987,15.97,39.87]
[1673414484532,0.96,15.986,15.97,39.87]
[1673414484743,2.85911593,15.985,15.969,40.05]
[1673414484952,1.92,15.984,15.969,40.05]
[1673414486339,1.92,15.984,15.97,1.92]
[1673414486524,1.92,15.984,15.971,33.63]
[1673414489167,133.6005,15.987,15.971,33.63]
[1673414489382,113.6005,15.987,15.972,21.92]
[1673414489572,113.6005,15.987,15.973,29.78]
[1673414489783,113.6005,15.987,15.974,1.92]
[1673414489998,113.6005,15.987,15.975,33.13]
[1673414490212,113.6005,15.987,15.976,1.92]
[1673414490529,113.6005,15.987,15.977,36.43]
[1673414491570,113.6005,15.987,15.978,20.0]
[1673414491786,113.6005,15.987,15.979,43.12]
[1673414493987,1.74018696,15.985,15.979,43.12]
[1673414494532,1.74018696,15.985,15.978,20.0]
[1673414495607,113.6005,15.987,15.978,20.0]
[1673414495800,20.0,15.986,15.978,20.0]
[1673414496018,1.67112629,15.985,15.978,20.0]
[1673414497383,1.67112629,15.985,15.977,20.0]
[1673414500009,1.67112629,15.985,15.973,46.97]
[1673414500223,1.92,15.984,15.97,46.98]
[1673414500865,1.92,15.984,15.971,20.0]
[1673414501184,1.92,15.984,15.972,46.97]
[1673414501377,1.92,15.984,15.97,46.98]
[1673414501797,1.92,15.984,15.971,21.92]
[1673414502019,1.67112629,15.985,15.973,20.0]
[1673414502232,1.67112629,15.985,15.974,48.88]
[1673414503697,20.0,15.991,15.975,20.0]
[1673414503906,20.0,15.991,15.976,68.88]
[1673414504117,20.0,15.991,15.977,40.0]
[1673414504342,20.0,15.991,15.978,48.87]
[1673414504657,20.0,15.991,15.979,20.0]
[1673414504975,20.0,15.991,15.98,46.95]
[1673414505284,1.92,15.99,15.98,46.95]
[1673414506961,1.92,15.99,15.979,20.0]
[1673414507151,1.92,15.99,15.98,46.95]
[1673414507360,1.92,15.99,15.979,46.95]
[1673414507987,28.63,15.99,15.97,42.00598064]
[1673414508203,28.63,15.99,15.968,110.5934]
[1673414508204,0.77956647,15.988,15.968,110.5934]
[1673414508424,0.79313952,15.986,15.968,110.5934]
[1673414508617,46.93,15.985,15.968,110.5934]
[1673414508829,20.0,15.983,15.969,25.59]
[1673414509045,0.96,15.982,15.969,25.59]
[1673414509272,0.96,15.981,15.969,25.59]
[1673414509483,0.96,15.98,15.969,25.59]
[1673414510427,0.96,15.979,15.969,25.59]
[1673414517789,0.96,15.978,15.969,25.59]
[1673414517998,0.96,15.978,15.968,110.5934]
[1673414518209,0.96,15.978,15.969,20.0]
[1673414522387,26.73,15.98,15.969,20.0]
[1673414522615,26.73,15.98,15.969,24.459]
[1673414524199,1.92,15.979,15.969,24.459]
[1673414524410,1.92,15.979,15.969,4.459]
[1673414524720,20.0,15.978,15.965,7.789]
[1673414524940,18.92,15.977,15.961,7.01]
[1673414525468,20.0,15.976,15.961,7.01]
[1673414525683,1.92,15.975,15.961,7.01]
[1673414526295,112.8087,15.975,15.961,7.01]
[1673414526501,20.0,15.974,15.961,7.01]
[1673414527144,20.0,15.974,15.961,6.51]
[1673414527555,20.0,15.974,15.962,1.92]
[1673414527781,20.0,15.974,15.963,16.2]
[1673414530526,20.0,15.974,15.962,1.92]
[1673414531358,1.92,15.973,15.961,22.06]
[1673414531548,1.92,15.973,15.96,76.6771]
[1673414531757,1.92,15.973,15.961,26.6]
[1673414532925,1.92,15.973,15.96,76.6771]
[1673414533769,1.92,15.973,15.961,19.86]
[1673414533980,110.8887,15.975,15.961,21.28]
[1673414534181,110.8887,15.975,15.962,20.0]
[1673414534393,110.8887,15.975,15.963,19.89]
[1673414535653,20.0,15.978,15.963,19.89]
[1673414535868,20.0,15.977,15.963,19.89]
[1673414546266,20.0,15.976,15.963,19.89]
[1673414546690,20.0,15.976,15.963,1.92]
[1673414547112,20.0,15.977,15.963,1.92]
[1673414547326,20.0,15.977,15.963,21.92]
[1673414547968,0.96,15.976,15.962,47.0]
[1673414548177,20.96,15.975,15.96,76.6771]
[1673414548388,115.7644,15.974,15.96,76.6771]
[1673414548593,20.96,15.973,15.96,76.6771]
[1673414548808,0.96,15.972,15.96,76.6771]
[1673414549026,0.96,15.971,15.96,76.6771]
[1673414550179,0.96,15.971,15.959,47.01]
[1673414550386,1.64532763,15.97,15.959,47.01]
[1673414550602,0.96,15.969,15.959,47.01]
[1673414550816,20.0,15.971,15.959,47.01]
[1673414551002,0.6843052,15.97,15.959,47.01]
[1673414551341,20.0,15.971,15.959,47.01]
[1673414551550,20.0,15.971,15.96,1.92]
[1673414552907,20.0,15.972,15.96,1.92]
[1673414553120,20.0,15.973,15.961,46.7]
[1673414553441,20.0,15.973,15.962,1.92]
[1673414555337,20.0,15.973,15.962,2.5913258]
[1673414555853,46.95,15.98,15.963,47.0]
[1673414556066,20.0,15.983,15.965,20.0]
[1673414556067,66.94,15.983,15.965,20.0]
[1673414556382,20.0,15.983,15.967,20.0]
[1673414556595,20.0,15.983,15.968,175.311]
[1673414556791,20.0,15.983,15.969,21.92]
[1673414557119,20.0,15.983,15.97,46.98]
[1673414557317,20.0,15.983,15.971,1.92]
[1673414559220,20.0,15.983,15.971,48.89]
[1673414559431,20.0,15.983,15.971,49.5613258]
[1673414560886,20.0,15.983,15.971,47.6413258]
[1673414561098,1.92,15.982,15.971,0.6713258]
[1673414561429,20.0,15.983,15.971,0.6713258]
[1673414562361,20.0,15.983,15.972,1.92]
[1673414563513,20.0,15.983,15.972,2.5913258]
[1673414568994,20.0,15.983,15.972,0.6713258]
[1673414569198,20.0,15.979,15.968,20.0]
[1673414569417,48.87,15.978,15.966,20.0]
[1673414569618,20.0,15.977,15.962,20.0]
[1673414569815,48.88,15.976,15.962,20.0]
[1673414570025,48.88,15.976,15.961,47.0]
[1673414570239,20.0,15.975,15.96,113.7508]
[1673414570455,166.8047,15.974,15.96,113.7508]
[1673414570677,166.8047,15.974,15.961,1.92]
[1673414570886,166.8047,15.974,15.96,113.7508]
[1673414571311,20.0,15.973,15.96,113.7508]
[1673414571523,20.0,15.971,15.96,113.7508]
[1673414573204,1.92,15.97,15.957,47.01]
[1673414573512,1.92,15.97,15.958,19.0]
[1673414574354,20.0,15.971,15.959,1.92]
[1673414574566,26.73,15.97,15.959,1.92]
[1673414575503,20.0,15.971,15.959,1.92]
[1673414575725,20.0,15.972,15.959,48.93]
[1673414579619,20.0,15.972,15.959,47.01]
[1673414579837,1.92,15.971,15.958,19.0]